Workbook

Sheet 5510 SONRASI(istifa)
C1: YERSİZ VE FAZLA ÖDENEN AYLIKLARDAN DOĞAN
C2: KİŞİLERDEN ALACAKLARI HESAPLAMA CETVELİ 5510 SONRASI
C4: Tahakkuk Birimi | D4: Odunpazarı Malmüdürlüğü | F4: Borç Nedeni | G4: Görevden Çekilme
C5: Borçlunun Adı Soyadı | F5: Hizmet Süresi
C6: Sicil Nosu | F6: İlişki Kesme Tarih
C7: Unvanı | F7: T.C.KİMLİK NO
C8: Ödenmiş Gün | D8: 31 | F8: Çalıştığı Gün | G8: 1
C10: TABLO 1 : AYLIK VE YAN ÖDEMELER
C11: AYLIK UNSURLARI | D11: TAHAKKUK ETTİRİLEN (A) | F11: TAHAKKUK ETTİRİLMESİ GEREKEN (B) | H11: FARK (C)
C12: Aylık | D12: 114.3 | F12: =(D12/D8)*G8 -> 3.687096774 | I12: =D12-F12 -> 110.6129032
C13: Taban Aylığı | D13: 2417.7 | F13: =(D13/D8)*G8 -> 77.99032258 | I13: =D13-F13 -> 2339.709677
C14: Kıdem Aylığı | D14: 18.54 | F14: =(D14/D8)*G8 -> 0.5980645161 | I14: =D14-F14 -> 17.94193548
C15: Ek Gösterge | D15: 77.23 | F15: =(D15/D8)*G8 -> 2.491290323 | I15: 74.73870968
C16: Özel Hizmet Tazminatı | D16: 1458.61 | F16: =(D16/D8)*G8 -> 47.05193548 | I16: 1411.558065
C17: Sendika ödeneği | D17: 115.85 | F17: =(D17/D8)*G8 -> 3.737096774 | I17: 112.1129032
C18: Aile ve Çocuk Yardımı* | D18: 0 | F18: =(D18) -> 0 | I18: 0
C19: Makam Tazminatı | F19: =(D19/D8)*G8 -> 0 | I19: 0
C20: Dil Tazminatı | F20: =(D20/D8)*G8 -> 0 | I20: 0
C21: Yan Ödeme | D21: 50.74 | F21: =(D21/D8*G8) -> 1.636774194 | I21: 49.10322581
C22: İdari Görev Ö. | D22: 0 | F22: =(D22/D8)*G8 -> 0 | I22: 0
C23: Ek Ödeme | D23: 953.8 | F23: =(D23/D8)*G8 -> 30.76774194 | I23: 923.0322581
C24: Eğitim Öğretim Ödeneği | D24: 0 | F24: =(D24/D8)*G8 -> 0 | I24: 0
C25: Gelişme Güçlüğü (*) | D25: 0 | F25: =(D25) -> 0 | I25: 0
C26: Üniversite Ödeneği | D26: 0 | F26: =(D26/D8)*G8 -> 0 | I26: 0
C27: TOPLAM | D27: =SUM(D12:D26) -> 5206.77 | F27: =SUM(F12:F26) -> 167.9603226 | H27: (1) | I27: =SUM(I12:I26) -> 5038.809677
C29: TABLO 2 : KESİNTİ YAPILAN KATKI PAYLARI
C30: AYLIK UNSURLARI | D30: FİİLEN ÖDENEN (A) | F30: HAK EDİLEN (B) | H30: FARK (C)
C31: Mal. yaş.ve Em. Prim %11 Dev. | D31: 459.1 | F31: =D31/30*G8 -> 15.30333333 | I31: =D31-F31 -> 443.7966667
C32: Genel sağlık sig. %7,5 Dev. | D32: 313.02 | F32: =D32/30*G8 -> 10.434 | I32: =D32-F32 -> 302.586
C33: TOPLAM | D33: =SUM(D31:D32) -> 772.12 | F33: =SUM(F31:F32) -> 25.73733333 | H33: (2)** | I33: =SUM(I31:I32) -> 746.3826667
C34: Hakediş Toplamı | D34: =(D27+D33) -> 5978.89
C36: TABLO 3 : YASAL KESİNTİLER
C37: AYLIK UNSURLARI | D37: FİİLEN KESİLEN (A) | F37: KESİLMESİ GEREKEN (B) | H37: FARK (C)
C38: Gelir Vergisi | D38: 165.02 | F38: =(D38/D8)*G8 -> 5.323225806 | I38: =(D38-F38) -> 159.6967742
C39: Damga Vergisi | D39: 39.33 | F39: =(D39/D8)*G8 -> 1.268709677 | I39: =(D39-F39) -> 38.06129032
C40: Mal. yaş.ve Em. Prim %9 Kişi | F40: =D40 -> 0 | I40: =D40-F40 -> 0
C41: Genel sağlık sig. %5 Kişi | D41: 0 | F41: =D41 -> 0 | I41: =D41-F41 -> 0
C42: Mal. yaş.ve Em. Prim %11 Dev. | D42: =(D31) -> 459.1 | F42: =D42/30*G8 -> 15.30333333 | I42: =D42-F42 -> 443.7966667
C43: Genel sağlık sig. %7,5 Dev. | D43: =(D32) -> 313.02 | F43: =D43/30*G8 -> 10.434 | I43: =D43-F43 -> 302.586
C45: TOPLAM | D45: =SUM(D38:D44) -> 976.47 | F45: =SUM(F38:F44) -> 32.32926882 | H45: (3) | I45: =SUM(I38:I44) -> 944.1407312
C47: 140 NOLU HESAP | F47: =(I27+I33) -> 5785.192344
C48: KİŞİDEN ALINACAK TUTAR | I48: =I27+I33-I38-I39 -> 5587.43428
D54: Harcama Yetkilisi
C55: Adı ve Soyadı :
C56: Unvanı :
C57: Tebliğ Tarih :
C58: İmza :

Sheet 5510 ÖNCESİ (Ücretsiz İzin)
D1: YERSİZ VE FAZLA ÖDENEN AYLIKLARDAN DOĞAN
D2: KİŞİLERDEN ALACAKLARI HESAPLAMA CETVELİ 5510 ÖNCESİ
D4: Tahakkuk Birimi | E4: Odunpazarı Malmüdürlüğü | G4: Borç Nedeni | H4: ÜCRETSİZ İZİN
D5: Borçlunun Adı Soyadı | G5: Hizmet Süresi
D6: Sicil Nosu | G6: İlişki Kesilme T
D7: Unvanı | G7: T.C.NO:
D8: Ödenmiş Gün | E8: 31 | G8: Çalıştığı Gün | H8: 18
D10: TABLO 1 : AYLIK VE YAN ÖDEMELER
D11: AYLIK UNSURLARI | E11: TAHAKKUK ETTİRİLEN (A) | G11: TAHAKKUK ETTİRİLMESİ GEREKEN (B) | I11: FARK (C)
D12: Aylık | E12: 191.48 | G12: =(E12/E8)*H8 -> 111.1819355 | J12: =E12-G12 -> 80.29806452
D13: Taban Aylığı | E13: 2814.19 | G13: =(E13/E8)*H8 -> 1634.045806 | J13: =E13-G13 -> 1180.144194
D14: Kıdem Aylığı | E14: 50.34 | G14: =(E14/E8)*H8 -> 29.22967742 | J14: =E14-G14 -> 21.11032258
D15: Ek Gösterge | E15: 287.68 | G15: =(E15/E8)*H8 -> 167.04 | J15: 120.64
D16: Özel Hizmet Tazminatı | E16: 1973.85 | G16: =(E16/E8)*H8 -> 1146.106452 | J16: 827.7435484
D17: Sendika ödeneği * | E17: 0 | G17: =(E17) -> 0 | J17: 0
D18: Aile ve Çocuk Yardımı* | E18: 0 | G18: =SUM(E18) -> 0 | J18: 0
D19: Çocuk Yardımı | E19: 0 | G19: =SUM(E19) -> 0 | J19: 0
D20: Dil Tazminatı | E20: 0 | G20: =(E20/E8)*H8 -> 0 | J20: 0
D21: Yan Ödeme | E21: 42.76 | G21: =(E21/E8)*H8 -> 24.8283871 | J21: 17.9316129
D22: İdari Görev Ö | E22: 0 | G22: =(E22/E8)*H8 -> 0
D23: Ek ödeme | E23: 1110.25 | G23: =(E23/E8)*H8 -> 644.6612903 | J23: 465.5887097 | M23: 2008 YILI EYLÜL AYINDAN
G24: =(E24/E8)*H8 -> 0 | J24: 0
J25: 0 | M25: ÖNCE GÖREVE BAŞLAYANLAR
D26: Artış %100 Devlet | E26: 0 | G26: =(E26/E8)*H8 -> 0 | J26: 0
D27: TOPLAM | E27: =SUM(E12:E26) -> 6470.55 | G27: =SUM(G12:G26) -> 3757.093548 | I27: (1) | J27: =SUM(J12:J26) -> 2713.456452
D29: TABLO 2 : KESİNTİ YAPILAN KATKI PAYLARI
D30: AYLIK UNSURLARI | E30: FİİLEN ÖDENEN (A) | G30: HAK EDİLEN (B) | I30: FARK (C)
D31: Emekli Keseneği %20 | E31: 856.63 | J31: =E31-G31 -> 856.63
D32: Genel Sağlık S.% 12 | E32: 513.98 | J32: =E32-G32 -> 513.98 | O32: =-D2 -> 
D33: TOPLAM | E33: =SUM(E31:E32) -> 1370.61 | G33: =SUM(G31:G32) -> 0 | I33: (2)** | J33: =SUM(J31:J32) -> 1370.61
D34: Hakediş Toplamı | E34: =(E27+E33) -> 7841.16
D35: TABLO 3 : YASAL KESİNTİLER
D36: AYLIK UNSURLARI | E36: FİİLEN KESİLEN (A) | G36: KESİLMESİ GEREKEN (B) | I36: FARK (C)
D37: Gelir Vergisi | E37: 136.86 | G37: =(E37/E8)*H8 -> 79.46709677 | J37: =(E37-G37) -> 57.39290323
D38: Damga Vergisi | E38: 49.11 | G38: =(E38/E8)*H8 -> 28.51548387 | J38: =(E38-G38) -> 20.59451613
D39: İkraz | E39: 0 | G39: 0 | J39: 0
D44: TOPLAM | E44: =SUM(E37:E43) -> 185.97 | G44: =SUM(G37:G43) -> 107.9825806 | I44: (3) | J44: =SUM(J37:J43) -> 77.98741935
D46: 5434-87.m. Eğer Hizmet Süresi 5 yıldan fazla ise (1)+(2)
D47: Eğer Hizmet Süresi 5 yıldan az ise (1)
D49: 140 Nolu Hesaba alınacak | G49: =IF(H5>10,J27,IF(H5<=5,J27,J27+J33)) -> 2713.456452
D50: KİŞİDEN ALINACAK TUTAR | J50: =IF(H5>10,J27-J44,IF(H5<=5,J27-J44,J27+J33-J44)) -> 2635.469032
E56: HARCAMA YETKİLİSİ | H56: BORÇLU
D57: Adı ve Soyadı :
D58: Unvanı : | J58: Ayşe Ülkü ÖNER
D59: Tebliğ Tarih :
D60: İmza :

Sheet 5510 SONRASI (Ücretsiz İzin.)
C1: YERSİZ VE FAZLA ÖDENEN AYLIKLARDAN DOĞAN
C2: KİŞİLERDEN ALACAKLARI HESAPLAMA CETVELİ 5510 SONRASI
C4: Tahakkuk Birimi | D4: Odunpazarı Mal Müd. | F4: Borç Nedeni
C5: Borçlunun Adı Soyadı | F5: Hizmet Süresi
C6: Sicil Nosu | F6: Adres ve Tlf.
C7: Unvanı | F7: T.C.Kimlik No:
C8: Ödenmiş Gün | D8: 31 | F8: Çalıştığı Gün | G8: 18
C10: TABLO 1 : AYLIK VE YAN ÖDEMELER
C11: AYLIK UNSURLARI | D11: TAHAKKUK ETTİRİLEN (A) | F11: TAHAKKUK ETTİRİLMESİ GEREKEN (B) | H11: FARK (C) | L11: 2008 EYLÜL AYINDAN SONRA
C12: Aylık | D12: 191.48 | F12: =(D12/D8)*G8 -> 111.1819355 | I12: =D12-F12 -> 80.29806452
C13: Taban Aylığı | D13: 2814.19 | F13: =(D13/D8)*G8 -> 1634.045806 | I13: =D13-F13 -> 1180.144194 | L13: GÖREVE BAŞLAYANLAR
C14: Kıdem Aylığı | D14: 50.34 | F14: =(D14/D8)*G8 -> 29.22967742 | I14: =D14-F14 -> 21.11032258
C15: Ek Gösterge | D15: 287.68 | F15: =(D15/D8)*G8 -> 167.04 | I15: 120.64
C16: Özel Hizmet Tazminatı | D16: 1973.85 | F16: =(D16/D8)*G8 -> 1146.106452 | I16: 827.7435484
C17: Sendika ödeneği | D17: 0 | F17: =(D17) -> 0 | I17: 0
C18: Aile ve Çocuk Yardımı* | D18: 0 | F18: =(D18) -> 0 | I18: 0
F19: =(D19/D8)*G8 -> 0 | I19: 0
F20: =(D20/D8)*G8 -> 0 | I20: 0
C21: Yan Ödeme | D21: 42.76 | F21: =(D21/D8)*G8 -> 24.8283871 | I21: 17.9316129
C22: İdari Görev Ödeneği | D22: 0 | F22: =(D22/D8)*G8 -> 0 | I22: 0
C23: Ek Ödeme | D23: 1110.25 | F23: =(D23/D8)*G8 -> 644.6612903 | I23: 465.5887097
C24: Eğitim Öğretim Ödeneği | D24: 0 | F24: =(D24/D8)*G8 -> 0 | I24: 0
C25: Gelişme Güç/Sendika Ödnğ | D25: 0 | F25: =(D25) -> 0 | I25: 0
C26: Üniversite ödeneği | D26: 0 | F26: =(D26/D8)*G8 -> 0 | I26: 0
C27: TOPLAM | D27: =SUM(D12:D26) -> 6470.55 | F27: =SUM(F12:F26) -> 3757.093548 | H27: (1) | I27: =SUM(I12:I26) -> 2713.456452
C29: TABLO 2 : KESİNTİ YAPILAN KATKI PAYLARI
C30: AYLIK UNSURLARI | D30: FİİLEN ÖDENEN (A) | F30: HAK EDİLEN (B) | H30: FARK (C)
C31: Emk.Kes.Mal.Yaş.Devlet | D31: 856.63 | F31: =D31/30*G8 -> 513.978 | I31: =D31-F31 -> 342.652
C32: Sağlık Sig.Primi Dev. | D32: 513.98 | F32: =D32/30*G8 -> 308.388 | I32: =D32-F32 -> 205.592
C33: TOPLAM | D33: =SUM(D31:D32) -> 1370.61 | F33: =SUM(F31:F32) -> 822.366 | H33: (2)** | I33: =SUM(I31:I32) -> 548.244
C34: Hakediş Toplamı | D34: =(D27+D33) -> 7841.16
C36: TABLO 3 : YASAL KESİNTİLER
C37: AYLIK UNSURLARI | D37: FİİLEN KESİLEN (A) | F37: KESİLMESİ GEREKEN (B) | H37: FARK (C)
C38: Gelir Vergisi | D38: 136.86 | F38: =(D38/D8)*G8 -> 79.46709677 | I38: =(D38-F38) -> 57.39290323
C39: Damga Vergisi | D39: 49.11 | F39: =(D39/D8)*G8 -> 28.51548387 | I39: =(D39-F39) -> 20.59451613
C40: Sağlık Sig.Primi Dev. | D40: 513.98 | F40: =D40/30*G8 -> 308.388 | I40: =D40-F40 -> 205.592
C41: Sağlık Sig.Primi Kişi | D41: 685.3 | F41: =(D41) -> 685.3 | I41: =D41-F41 -> 0
C42: Emk.Kes.Mal.Yaş.Devlet | D42: 856.63 | F42: =D42/30*G8 -> 513.978 | I42: =D42-F42 -> 342.652
C43: Emk.Kes.Mal.Yaş.Kişi | D43: 685.3 | F43: =(D43) -> 685.3 | I43: =D43-F43 -> 0
C44: Sendika Kesintisi | D44: 0
C45: TOPLAM | D45: =SUM(D38:D44) -> 2927.18 | F45: =SUM(F38:F44) -> 2300.948581 | H45: (3) | I45: =SUM(I38:I44) -> 626.2314194
C47: 140 NOLU HESAP | F47: =(I27+I33) -> 3261.700452
C48: KİŞİDEN ALINACAK TUTAR | I48: =I27+I33-I38-I39-I40-I42 -> 2635.469032
D54: Gerçekleştrime Görevlisi | G54: Borçlu
C55: Adı ve Soyadı : | D55: Zübeyde ERTEN | G55: Aslıhan ACAR
C56: Unvanı : | D56: Okul Müdürü
C57: Tebliğ Tarih :
C58: İmza :
